bitfinex/quotes_SOLUSD_20241102
["timestamp","ask_amount","ask_price","bid_price","bid_amount"]
[1730552722022,17.60944674,165.5,165.47,23.902374]
[1730552723230,17.60944674,165.5,165.48,6.043]
[1730552723434,17.60944674,165.49,165.48,6.043]
[1730552723739,47.60944674,165.49,165.47,29.945674]
[1730552723938,17.60944674,165.48,165.47,29.945674]
[1730552724242,17.60944674,165.48,165.46,21.153]
[1730552724417,17.60944674,165.47,165.45,23.776884]
[1730552724616,17.60944674,165.46,165.45,23.902374]
[1730552725231,17.60944674,165.46,165.45,29.946474]
[1730552726727,30.0,165.49,165.45,29.946474]
[1730552726728,17.60944674,165.48,165.45,29.946474]
[1730552727023,47.60944674,165.49,165.45,45.056774]
[1730552727223,30.0,165.49,165.46,0.12549]
[1730552727530,30.0,165.49,165.47,23.776884]
[1730552727714,30.0,165.49,165.48,17.73493674]
[1730552727918,30.0,165.49,165.48,23.902374]
[1730552728440,30.0,165.49,165.48,49.945374]
[1730552728652,17.60944674,165.53,165.49,23.776884]
[1730552729528,17.60944674,165.53,165.5,0.12549]
[1730552729840,17.60944674,165.54,165.5,0.12549]
[1730552730040,17.60944674,165.53,165.5,0.12549]
[1730552730231,17.60944674,165.52,165.49,23.776884]
[1730552730738,17.60944674,165.52,165.49,29.819184]
[1730552732133,17.60944674,165.52,165.45,30.2206]
[1730552732134,17.60944674,165.5,165.45,15.1102]
[1730552732343,17.60944674,165.47,165.45,15.1102]
[1730552732529,17.60944674,165.47,165.43,0.12549]
[1730552733346,17.60944674,165.47,165.43,20.12549]
[1730552733938,17.60944674,165.46,165.44,23.776884]
[1730552734240,17.60944674,165.45,165.42,21.1582]
[1730552734631,17.60944674,165.45,165.43,0.12549]
[1730552735336,17.60944674,165.46,165.43,23.902374]
[1730552735931,6.0428,165.49,165.39,35.1156]
[1730552735932,17.60944674,165.44,165.39,35.1156]
[1730552736243,17.60944674,165.44,165.4,0.12549]
[1730552736627,17.60944674,165.44,165.39,35.1156]
[1730552736828,17.60944674,165.45,165.4,17.60944674]
[1730552737132,17.60944674,165.46,165.42,0.12549]
[1730552737443,16.1767,165.48,165.42,0.12549]
[1730552737444,17.60944674,165.45,165.42,0.12549]
[1730552737834,17.60944674,165.45,165.41,20.0]
[1730552737835,17.60944674,165.44,165.41,21.1594]
[1730552738145,17.60944674,165.44,165.42,23.902374]
[1730552738357,17.60944674,165.45,165.42,23.902374]
[1730552738528,17.60944674,165.46,165.42,23.902374]
[1730552738938,17.60944674,165.45,165.42,23.902374]
[1730552739138,17.60944674,165.45,165.43,6.0448]
[1730552739934,17.60944674,165.45,165.41,15.1139]
[1730552740132,17.60944674,165.43,165.41,21.1593]
[1730552741049,17.60944674,165.44,165.41,21.1593]
[1730552742122,17.60944674,165.43,165.41,21.1593]
[1730552742945,6.0433,165.47,165.38,17.60944674]
[1730552742946,17.60944674,165.42,165.38,15.1163]
[1730552743240,17.60944674,165.4,165.38,15.1163]
[1730552743549,17.60944674,165.39,165.38,15.1163]
[1730552744032,17.60944674,165.4,165.38,15.1163]
[1730552744235,17.60944674,165.4,165.37,0.12549]
[1730552745319,17.60944674,165.4,165.38,6.0466]
[1730552746954,17.60944674,165.39,165.38,6.0466]
[1730552747131,17.60944674,165.39,165.37,6.17239]
[1730552747335,17.60944674,165.39,165.37,21.28999]
[1730552749940,17.60944674,165.39,165.37,21.1645]
[1730552751433,17.60944674,165.41,165.37,21.1645]
[1730552751951,17.60944674,165.42,165.39,21.162]
[1730552752751,17.60944674,165.43,165.39,21.162]
[1730552752939,17.60944674,165.45,165.41,21.1594]
[1730552753643,17.60944674,165.47,165.42,43.902374]
[1730552753851,17.60944674,165.48,165.42,61.51182074]
[1730552754740,17.60944674,165.5,165.44,61.51182074]
[1730552754951,17.60944674,165.5,165.44,37.73493674]
[1730552755163,17.60944674,165.5,165.45,44.931284]
[1730552755846,23.65094674,165.52,165.45,21.1544]
[1730552756051,17.60944674,165.46,165.45,21.1544]
[1730552757160,17.60944674,165.46,165.42,65.060574]
[1730552757344,17.60944674,165.47,165.42,82.67002074]
[1730552758345,17.60944674,165.44,165.42,41.1582]
[1730552758640,17.60944674,165.45,165.42,41.1582]
[1730552761451,20.1,165.47,165.36,30.2368]
[1730552761660,17.60944674,165.39,165.38,15.1163]
[1730552762561,17.60944674,165.39,165.37,0.12549]
[1730552762870,17.60944674,165.4,165.37,23.902374]
[1730552763165,17.60944674,165.43,165.38,20.0]
[1730552763356,6.0443,165.45,165.38,20.0]
[1730552763357,17.60944674,165.41,165.38,20.0]
[1730552764064,17.60944674,165.41,165.37,23.902374]
[1730552764260,17.60944674,165.41,165.38,21.1633]
[1730552764653,17.60944674,165.42,165.38,21.1633]
[1730552765759,17.60944674,165.42,165.4,21.1607]
[1730552765965,17.60944674,165.43,165.4,21.1607]
[1730552766871,17.60944674,165.43,165.4,15.1148]
[1730552767072,17.60944674,165.45,165.41,0.12549]
[1730552767380,17.60944674,165.45,165.41,23.902374]
[1730552767757,17.60944674,165.46,165.42,20.0]
[1730552767962,17.60944674,165.46,165.43,21.1569]
[1730552768154,17.60944674,165.47,165.43,21.1569]
[1730552768822,17.60944674,165.48,165.44,20.12549]
[1730552769380,17.60944674,165.48,165.45,21.1544]
[1730552769756,17.60944674,165.49,165.46,0.12549]
[1730552770058,17.60944674,165.51,165.46,20.12549]
[1730552770257,17.60944674,165.5,165.46,20.12549]
[1730552771064,17.60944674,165.5,165.47,21.1517]
[1730552771267,17.60944674,165.51,165.47,21.1517]
[1730552771573,17.60944674,165.52,165.48,20.0]
[1730552771888,17.60944674,165.51,165.48,20.0]
[1730552772051,17.60944674,165.49,165.47,21.1517]
[1730552773071,17.60944674,165.5,165.47,21.1517]
[1730552773679,17.60944674,165.51,165.47,21.1517]
[1730552774472,17.60944674,165.49,165.47,21.1517]
[1730552774683,17.60944674,165.48,165.47,21.1517]
[1730552774985,17.60944674,165.49,165.47,21.1517]
[1730552776066,17.60944674,165.5,165.47,21.1517]
[1730552776272,17.60944674,165.51,165.47,21.1517]
[1730552776573,17.60944674,165.52,165.47,21.1517]
[1730552777076,17.60944674,165.52,165.48,20.0]
[1730552777576,17.60944674,165.52,165.49,21.1492]
[1730552778592,17.60944674,165.53,165.49,21.1492]
[1730552779767,17.60944674,165.52,165.49,21.1492]
[1730552780174,17.60944674,165.53,165.49,21.1492]
[1730552780476,18.22180704,165.55,165.5,37.73493674]
[1730552781374,17.60944674,165.54,165.5,20.12549]
[1730552782482,17.60944674,165.54,165.51,21.1467]
[1730552785079,18.22180704,165.55,165.51,21.1467]
[1730552785485,17.60944674,165.54,165.51,21.1467]
[1730552787276,18.22180704,165.55,165.51,21.1467]
[1730552787683,0.6123603,165.55,165.52,43.902374]
[1730552789491,0.6123603,165.55,165.53,21.1442]
[1730552790575,0.6123603,165.55,165.54,0.12549]
[1730552790772,0.6123603,165.55,165.54,20.12549]
[1730552790971,0.6123603,165.55,165.54,43.902374]
[1730552791377,0.6123603,165.55,165.54,61.76280074]
[1730552791573,0.6123603,165.55,165.54,67.80360074]
[1730552795569,0.6123603,165.55,165.54,69.46129548]
[1730552796871,0.6123603,165.55,165.54,50.068664]
[1730552797099,0.6123603,165.55,165.54,6.0408]
[1730552797269,0.6123603,165.55,165.54,6.16629]
[1730552797870,18.22180704,165.55,165.53,15.103]
[1730552798492,18.22180704,165.55,165.54,20.0]
[1730552798884,0.6123603,165.55,165.54,20.0]
[1730552799195,18.22180704,165.55,165.54,20.0]
[1730552800601,0.6123603,165.55,165.54,20.0]
[1730552801990,0.6123603,165.55,165.54,67.55262074]
[1730552802201,0.6123603,165.55,165.54,67.80360074]
[1730552802372,0.6123603,165.55,165.54,50.194154]
[1730552803495,0.6123603,165.55,165.54,67.80360074]
[1730552805076,0.6123603,165.55,165.54,50.194154]
[1730552806088,0.6123603,165.55,165.54,67.80360074]
[1730552810603,0.6123603,165.55,165.54,61.40816484]
[1730552812396,0.6123603,165.55,165.54,61.60816484]
[1730552812991,0.6123603,165.55,165.54,61.50816484]
[1730552813198,0.6123603,165.55,165.54,61.60816484]
[1730552813381,0.6123603,165.55,165.54,63.26352452]
[1730552813783,0.6123603,165.55,165.54,63.06352452]
[1730552814086,0.6123603,165.55,165.54,63.16352452]
[1730552815306,0.6123603,165.55,165.54,61.50816484]
[1730552815698,0.6123603,165.55,165.54,61.60816484]
[1730552818607,0.6123603,165.55,165.54,61.50816484]
[1730552818808,0.6123603,165.55,165.54,61.40816484]
[1730552819104,0.6123603,165.55,165.54,61.50816484]
[1730552819306,0.6123603,165.55,165.54,61.40816484]
[1730552820008,0.6123603,165.55,165.54,61.50816484]
[1730552820196,0.6123603,165.55,165.54,37.25481084]
[1730552820507,0.6123603,165.55,165.54,26.0408]
[1730552821093,0.6123603,165.55,165.54,26.16629]
[1730552821709,0.6123603,165.55,165.54,49.943174]
[1730552822209,0.6123603,165.55,165.54,49.817684]
[1730552822503,0.6123603,165.55,165.54,49.943174]
[1730552823303,0.6123603,165.55,165.54,61.40816484]
[1730552824391,0.6123603,165.55,165.54,50.194154]
[1730552825312,0.6123603,165.55,165.54,61.40816484]
[1730552825609,0.6123603,165.55,165.54,50.194154]
[1730552825797,0.6123603,165.55,165.54,61.40816484]
[1730552827006,0.6123603,165.55,165.54,61.50816484]
[1730552827712,0.6123603,165.55,165.54,61.40816484]
[1730552829016,0.6123603,165.55,165.54,26.0408]
[1730552829312,0.6123603,165.55,165.54,6.0408]
[1730552829509,0.6123603,165.55,165.54,6.16629]
[1730552830710,0.6123603,165.55,165.54,26.16629]
[1730552831997,0.6123603,165.55,165.54,61.40816484]
[1730552835016,0.6123603,165.55,165.54,26.0408]
[1730552835710,0.6123603,165.55,165.54,26.16629]
[1730552836118,0.6123603,165.55,165.54,49.943174]
[1730552837316,0.6123603,165.55,165.54,26.16629]
[1730552837717,0.1123603,165.55,165.54,26.16629]
[1730552838505,0.1123603,165.55,165.54,20.0]
[1730552841013,0.1123603,165.55,165.54,26.0408]
[1730552841513,0.1123603,165.55,165.54,6.0408]
[1730552842412,11.32637114,165.55,165.49,15.1061]
[1730552842602,11.21401084,165.52,165.49,15.1061]
[1730552842801,11.21401084,165.52,165.51,6.16739]
[1730552843015,11.21401084,165.52,165.49,21.1484]
[1730552843409,11.21401084,165.51,165.49,15.1061]
[1730552843810,11.21401084,165.51,165.48,6.0429]
[1730552844912,11.21401084,165.51,165.47,0.12549]
[1730552845099,11.21401084,165.5,165.47,0.12549]
[1730552845822,11.21401084,165.48,165.45,1.65625976]
[1730552846005,11.21401084,165.47,165.45,1.65625976]
[1730552846417,11.21401084,165.48,165.45,1.65625976]
[1730552846721,11.21401084,165.48,165.45,6.0441]
[1730552847214,11.21401084,165.46,165.45,20.0]
[1730552847414,11.21401084,165.47,165.45,20.0]
[1730552847717,11.21401084,165.48,165.45,20.0]
[1730552848102,26.36991084,165.5,165.48,0.12549]
[1730552848718,11.21401084,165.49,165.44,22.06198445]
[1730552848900,11.21401084,165.45,165.44,0.90638445]
[1730552852421,17.55505288,165.45,165.44,0.90638445]
[1730552853215,17.55505288,165.47,165.44,6.95078445]
[1730552855097,17.55505288,165.47,165.44,6.0444]
[1730552855304,17.55505288,165.46,165.44,20.12549]
[1730552855717,17.55505288,165.45,165.44,20.12549]
[1730552856028,17.55505288,165.46,165.44,20.12549]
[1730552856203,17.55505288,165.46,165.44,26.16979]
[1730552857015,17.55505288,165.49,165.44,41.28099]
[1730552857314,17.55505288,165.49,165.44,58.83604288]
[1730552857707,17.55505288,165.5,165.46,20.12549]
[1730552858331,12.3421,165.53,165.45,20.0]
[1730552858332,17.55505288,165.48,165.45,20.0]
[1730552858636,17.55505288,165.46,165.45,26.16959]
[1730552860510,17.55505288,165.47,165.45,26.16959]
[1730552860711,17.55505288,165.48,165.45,26.16959]
[1730552861918,17.55505288,165.49,165.45,26.16959]
[1730552862429,17.55505288,165.48,165.45,26.16959]
[1730552863207,17.55505288,165.48,165.46,6.16909]
[1730552864529,17.55505288,165.47,165.44,15.1112]
[1730552864709,17.55505288,165.45,165.44,35.23669]
[1730552864911,17.55505288,165.45,165.44,20.0]
[1730552865407,17.55505288,165.45,165.43,20.12549]
[1730552865615,17.55505288,165.47,165.43,20.12549]
[1730552865935,17.55505288,165.46,165.43,20.12549]
[1730552866312,17.55505288,165.45,165.43,20.12549]
[1730552866710,17.55505288,165.45,165.43,26.17029]
[1730552868330,17.55505288,165.46,165.43,26.17029]
[1730552868529,17.55505288,165.44,165.43,20.0]
[1730552871548,17.55505288,165.44,165.4,20.0]
[1730552871728,17.55505288,165.42,165.39,15.1154]
[1730552871919,17.55505288,165.41,165.39,15.1154]
[1730552872539,11.23979167,165.42,165.39,15.1154]
[1730552873020,11.23979167,165.42,165.4,20.0]
[1730552874247,11.23979167,165.42,165.4,26.0459]
[1730552874548,17.56128272,165.42,165.4,26.0459]
[1730552875744,17.56128272,165.43,165.4,26.0459]
[1730552875920,17.56128272,165.42,165.4,26.0459]
[1730552878543,17.56128272,165.41,165.37,6.0469]
[1730552878748,17.56128272,165.39,165.38,20.0]
[1730552879644,17.56128272,165.4,165.38,20.0]
[1730552880937,17.56128272,165.41,165.38,20.0]
[1730552881740,17.56128272,165.41,165.38,26.0465]
[1730552881928,17.56128272,165.4,165.38,20.0]
[1730552882134,17.56128272,165.39,165.38,20.0]
[1730552882438,17.56128272,165.39,165.37,17.28101568]
[1730552882639,17.56128272,165.38,165.37,35.1176]
[1730552882850,17.56128272,165.38,165.35,12.34939888]
[1730552883040,6.0459,165.4,165.36,20.0]
[1730552883737,17.56128272,165.37,165.36,20.0]
[1730552884137,6.0459,165.4,165.36,20.0]
[1730552884138,17.56128272,165.38,165.36,20.0]
[1730552885039,17.56128272,165.37,165.36,20.0]
[1730552885956,17.56128272,165.37,165.35,12.34949888]
[1730552886127,6.3117,165.41,165.35,6.30179888]
[1730552886128,17.56128272,165.36,165.35,6.30179888]
[1730552886446,17.56128272,165.36,165.33,15.1205]
[1730552886624,17.56128272,165.35,165.33,15.1205]
[1730552887226,17.56128272,165.36,165.33,15.1205]
[1730552887422,17.56128272,165.36,165.33,21.169]
[1730552887835,17.56128272,165.35,165.33,21.169]
[1730552888355,17.56128272,165.34,165.33,15.1205]
[1730552888536,17.56128272,165.35,165.33,15.1205]
[1730552888939,17.56128272,165.37,165.34,20.12549]
[1730552889131,17.56128272,165.38,165.34,20.12549]
[1730552889537,17.56128272,165.39,165.34,20.12549]
[1730552890748,17.56128272,165.39,165.35,6.0477]
[1730552891128,17.56128272,165.38,165.35,6.0477]
[1730552891552,17.56128272,165.38,165.36,0.12549]
[1730552892533,17.56128272,165.39,165.36,21.29119]
[1730552892838,17.56128272,165.38,165.36,15.1185]
[1730552894054,17.56128272,165.37,165.34,20.12549]
[1730552894433,11.24637124,165.37,165.34,20.12549]
[1730552895054,11.24637124,165.37,165.34,26.17349]
[1730552895452,11.24637124,165.37,165.34,20.0]
[1730552895637,11.24637124,165.36,165.34,20.0]
[1730552896335,11.24637124,165.36,165.33,21.1693]
[1730552896752,11.24637124,165.36,165.33,15.1212]
[1730552897136,11.24637124,165.37,165.34,20.12549]
[1730552898161,11.24637124,165.37,165.34,26.17349]
[1730552898357,11.24637124,165.35,165.3,26.0496]
[1730552898560,11.24637124,165.36,165.31,0.12549]
[1730552898852,11.24637124,165.35,165.31,0.12549]
[1730552899051,11.24637124,165.34,165.31,0.12549]
[1730552899951,11.24637124,165.35,165.31,0.12549]
[1730552900838,11.24637124,165.35,165.32,6.0488]
[1730552901038,11.24637124,165.35,165.33,20.0]
[1730552901240,11.24637124,165.34,165.33,20.0]
[1730552901975,11.24637124,165.34,165.32,20.0]
[1730552902743,11.24637124,165.33,165.32,20.0]
[1730552902940,11.24637124,165.33,165.3,21.1735]
[1730552904256,11.24637124,165.32,165.28,20.0]
[1730552904457,11.24637124,165.33,165.29,0.12549]
[1730552904658,11.24637124,165.34,165.29,11.37186124]
[1730552904865,11.24637124,165.34,165.3,20.0]
[1730552905069,11.24637124,165.34,165.31,0.12549]
[1730552906389,11.24637124,165.34,165.31,6.17439]
[1730552906667,11.24637124,165.33,165.31,6.17439]
[1730552907464,11.24637124,165.34,165.31,6.17439]
[1730552910863,11.24637124,165.36,165.33,0.12549]
[1730552911366,11.24637124,165.37,165.33,0.12549]
[1730552911839,21.0743,165.39,165.33,0.12549]
[1730552911840,11.24637124,165.36,165.33,0.12549]
[1730552913171,11.24637124,165.36,165.34,20.0]
[1730552914359,11.24637124,165.36,165.34,26.048]
[1730552915250,11.24637124,165.36,165.34,20.0]
[1730552915444,11.24637124,165.36,165.34,26.048]
[1730552916470,11.24637124,165.37,165.34,26.048]
[1730552916788,11.24637124,165.39,165.35,0.12549]
[1730552917251,11.24637124,165.4,165.35,0.12549]
[1730552917660,11.24637124,165.4,165.35,23.902374]
[1730552917970,11.24637124,165.4,165.37,0.12549]
[1730552918354,11.24637124,165.39,165.37,0.12549]
[1730552919172,11.24637124,165.4,165.37,0.12549]
[1730552920962,11.24637124,165.41,165.37,6.17239]
[1730552921268,11.24637124,165.42,165.37,21.28999]
[1730552921454,11.24637124,165.43,165.39,0.12549]
[1730552922753,11.24637124,165.42,165.39,6.17169]
[1730552923747,11.24637124,165.44,165.4,20.0]
[1730552923955,11.24637124,165.48,165.43,0.12549]
[1730552924268,11.24637124,165.48,165.43,31.37186124]
[1730552925175,11.24637124,165.48,165.43,26.17009]
[1730552925371,11.24637124,165.49,165.43,52.52856124]
[1730552925580,11.24637124,165.49,165.45,20.12549]
[1730552927074,11.24637124,165.5,165.45,37.41566124]
[1730552927649,11.24637124,165.5,165.45,26.16929]
[1730552929160,11.24637124,165.49,165.45,26.16929]
[1730552930966,17.28867124,165.5,165.45,37.41566124]
[1730552933275,11.24637124,165.51,165.47,0.12549]
[1730552933475,6.0418,165.52,165.47,0.12549]
[1730552933476,17.28817124,165.52,165.47,0.12549]
[1730552934189,11.24637124,165.51,165.47,0.12549]
[1730552934485,11.24637124,165.51,165.47,6.16879]
[1730552937591,11.24637124,165.48,165.45,20.0]
[1730552937780,6.1233,165.54,165.43,11.24637124]
[1730552937781,11.24637124,165.47,165.43,20.0]
[1730552938285,11.24637124,165.46,165.44,2.16250031]
[1730552938494,11.24637124,165.45,165.4,0.90691034]
[1730552938669,11.24637124,165.44,165.41,0.12549]
[1730552938869,11.24637124,165.45,165.41,0.12549]
[1730552939984,11.24637124,165.43,165.4,0.90691034]
[1730552940191,11.24637124,165.42,165.4,0.90691034]
[1730552940495,11.24637124,165.43,165.41,0.12549]
[1730552940672,11.24637124,165.45,165.41,20.12549]
[1730552941583,11.24637124,165.48,165.43,31.37186124]
[1730552941785,17.28907124,165.49,165.43,31.37186124]
[1730552942169,11.24637124,165.48,165.43,31.37186124]
[1730552942591,11.24637124,165.48,165.43,52.52846124]
[1730552942896,17.28907124,165.49,165.43,52.52846124]
[1730552944187,11.24637124,165.48,165.43,52.52846124]
[1730552944693,17.5478682,165.48,165.43,58.8299582]
[1730552945084,17.5478682,165.49,165.43,58.8299582]
[1730552945383,17.5478682,165.49,165.45,20.12549]
[1730552948781,17.5478682,165.49,165.45,26.16949]
[1730552949472,23.5894682,165.52,165.47,20.12549]
[1730552952591,15.2141603,165.55,165.49,37.5478682]
[1730552952592,23.5888682,165.54,165.49,37.5478682]
[1730552952790,17.5478682,165.52,165.49,0.12549]
[1730552953999,17.5478682,165.52,165.48,6.16839]
[1730552954181,17.5478682,165.51,165.49,20.0]
[1730552954778,17.5478682,165.51,165.48,20.12549]
[1730552954977,17.5478682,165.5,165.47,15.1084]
[1730552955698,17.5478682,165.51,165.47,21.1517]
[1730552956104,17.5478682,165.51,165.47,15.1084]
[1730552956399,17.5478682,165.5,165.47,15.1084]
[1730552956897,17.5478682,165.49,165.47,15.1084]
[1730552958603,17.5478682,165.5,165.47,15.1084]
[1730552959195,6.0421,165.51,165.47,15.1084]
[1730552960076,17.5478682,165.52,165.48,6.16839]
[1730552960489,17.5478682,165.53,165.48,38.8237582]
[1730552961007,17.5478682,165.52,165.48,21.27589]
[1730552961380,17.5478682,165.53,165.48,21.27589]
[1730552962304,23.5891682,165.53,165.48,21.27589]
[1730552963310,17.5478682,165.53,165.49,23.776884]
[1730552963618,0.1123603,165.55,165.5,17.6733582]
[1730552963899,0.1123603,165.55,165.52,0.12549]
[1730552964101,30.0,165.53,165.52,0.12549]
[1730552965100,0.1123603,165.55,165.52,0.12549]
[1730552965297,17.6602285,165.55,165.52,0.12549]
[1730552965886,17.5478682,165.53,165.5,20.0]
[1730552966216,17.5478682,165.51,165.49,20.0]
[1730552966702,11.22683762,165.52,165.5,0.12549]
[1730552967806,11.22683762,165.52,165.49,0.12549]
[1730552968101,11.22683762,165.51,165.45,11.22683762]
[1730552968293,11.22683762,165.5,165.47,20.0]
[1730552969093,11.22683762,165.5,165.45,20.0]
[1730552969406,11.22683762,165.5,165.46,0.12549]
[1730552970391,11.22683762,165.5,165.47,20.0]
[1730552972687,11.22683762,165.49,165.46,6.16919]
[1730552973485,11.22683762,165.48,165.45,20.0]
[1730552973786,11.22683762,165.46,165.42,26.0448]
[1730552973993,11.22683762,165.46,165.42,41.1578]
[1730552974310,11.22683762,165.48,165.43,0.12549]
[1730552975392,11.22683762,165.48,165.43,6.17009]
[1730552975594,11.22683762,165.49,165.45,0.12549]
[1730552975788,11.22683762,165.5,165.45,0.12549]
[1730552976510,11.22683762,165.5,165.45,35.12921162]
[1730552977307,11.22683762,165.5,165.45,23.902374]
[1730552977495,11.22683762,165.5,165.47,0.12549]
[1730552978202,11.22683762,165.49,165.47,0.12549]
[1730552984502,17.26903762,165.5,165.47,0.12549]
[1730552984697,11.22683762,165.51,165.47,0.12549]
[1730552984901,11.22683762,165.51,165.48,0.12549]
[1730552988501,11.22683762,165.51,165.47,6.0433]
[1730552988502,11.22683762,165.51,165.47,0.12549]
[1730552988835,17.26803762,165.53,165.47,56.28091162]
[1730552989122,17.26803762,165.53,165.49,0.12549]
[1730552989123,11.22683762,165.53,165.49,0.12549]
[1730552989821,11.22683762,165.52,165.49,0.12549]
[1730552990620,11.22683762,165.53,165.49,0.12549]
[1730552991008,12.5714,165.54,165.51,0.12549]
[1730552991009,6.0411,165.54,165.51,0.12549]
[1730552991206,30.0,165.52,165.51,0.12549]
[1730552991411,6.0411,165.54,165.51,0.12549]
[1730552992018,17.26793762,165.54,165.5,0.12549]
[1730552993215,11.33919792,165.55,165.52,0.12549]
[1730552994503,11.22683762,165.54,165.52,0.12549]
[1730552996018,11.22683762,165.53,165.51,0.12549]
[1730552996927,11.22683762,165.54,165.51,0.12549]
[1730553000238,6.1528603,165.55,165.51,0.12549]
[1730553000430,0.1123603,165.55,165.51,17.39412762]
[1730553001407,11.33919792,165.55,165.51,21.27209]
[1730553006236,11.22683762,165.53,165.51,21.27209]
[1730553008340,11.22683762,165.52,165.5,43.776884]
[1730553008512,11.22683762,165.52,165.51,0.12549]
[1730553009418,11.22683762,165.52,165.48,20.0]
[1730553009625,11.22683762,165.5,165.48,20.0]
[1730553009825,11.22683762,165.49,165.44,11.22683762]
[1730553010024,11.22683762,165.48,165.44,21.1552]
[1730553010738,11.22683762,165.48,165.45,0.12549]
[1730553010940,11.22683762,165.48,165.44,21.1552]
[1730553011260,11.22683762,165.48,165.45,23.776884]
[1730553011735,11.22683762,165.48,165.47,0.12549]
[1730553012040,11.22683762,165.49,165.47,0.12549]
[1730553013120,11.22683762,165.48,165.47,0.12549]
[1730553013643,11.22683762,165.5,165.47,23.902374]
[1730553014432,11.22683762,165.5,165.47,29.945574]
[1730553015033,11.22683762,165.51,165.49,0.12549]
[1730553015826,11.22683762,165.52,165.49,0.12549]
[1730553016840,11.22683762,165.51,165.49,0.12549]
[1730553018240,11.22683762,165.5,165.49,0.12549]
[1730553022854,11.22683762,165.5,165.48,0.12549]
[1730553023151,11.22683762,165.49,165.48,0.12549]
[1730553025161,11.22683762,165.49,165.46,20.0]
[1730553025464,11.22683762,165.47,165.46,20.0]
[1730553025641,11.22683762,165.47,165.46,20.12549]
[1730553025833,11.22683762,165.49,165.47,0.12549]
[1730553031737,11.22683762,165.48,165.47,0.12549]
[1730553032642,11.22683762,165.49,165.47,0.12549]
[1730553033792,11.22683762,165.48,165.47,0.12549]
[1730553035553,11.22683762,165.48,165.43,44.027864]
[1730553035745,11.22683762,165.44,165.43,43.776884]
[1730553035947,11.22683762,165.44,165.43,20.0]
[1730553036960,11.22683762,165.44,165.4,6.95281034]
[1730553037263,11.22683762,165.42,165.4,6.95281034]
[1730553037441,11.22683762,165.42,165.41,0.12549]
[1730553038346,11.22683762,165.42,165.41,23.902374]
[1730553040463,11.22683762,165.43,165.41,23.902374]
[1730553043954,11.22683762,165.44,165.43,0.12549]
[1730553044153,11.22683762,165.46,165.43,23.902374]
[1730553044947,11.22683762,165.45,165.43,23.902374]
[1730553047165,11.22683762,165.46,165.43,29.947074]
[1730553047350,11.22683762,165.45,165.43,29.947074]
[1730553053963,16.291,165.5,165.43,29.947074]
[1730553053964,11.22683762,165.46,165.43,29.947074]
[1730553056268,11.22683762,165.47,165.45,0.12549]
[1730553056468,11.22683762,165.48,165.45,0.12549]
[1730553059672,11.22683762,165.49,165.45,29.946274]
[1730553059876,11.22683762,165.49,165.45,45.056574]
[1730553060987,11.22683762,165.49,165.47,0.12549]
[1730553066670,11.22683762,165.49,165.47,23.902374]
[1730553066871,11.22683762,165.52,165.49,0.12549]
[1730553067073,11.22683762,165.52,165.49,23.902374]
[1730553067988,11.22683762,165.52,165.5,20.0]
[1730553068289,6.6616,165.56,165.5,20.0]
[1730553068290,11.22683762,165.53,165.51,0.12549]
[1730553068495,11.22683762,165.54,165.51,23.902374]
[1730553068993,11.22683762,165.54,165.52,20.0]
[1730553070273,11.22683762,165.55,165.53,0.12549]
[1730553071078,11.22683762,165.56,165.53,0.12549]
[1730553071297,11.22683762,165.54,165.52,1.1147342]
[1730553071481,11.22683762,165.53,165.52,1.1147342]
[1730553072795,11.22683762,165.53,165.51,0.12549]
[1730553072993,11.22683762,165.52,165.51,0.12549]
[1730553073576,11.22683762,165.52,165.51,0.99220186]
[1730553073987,11.22683762,165.53,165.51,0.12549]
[1730553074803,11.22683762,165.52,165.51,0.12549]
[1730553077682,11.22683762,165.55,165.51,0.12549]
[1730553077887,11.22683762,165.54,165.51,0.12549]
[1730553079001,11.22683762,165.52,165.51,0.12549]
[1730553079390,11.22683762,165.53,165.51,0.12549]
[1730553079793,11.22683762,165.54,165.51,0.12549]
[1730553079994,17.26753762,165.55,165.51,0.12549]
[1730553080398,11.22683762,165.55,165.51,29.944174]
[1730553080796,11.22683762,165.56,165.51,29.944174]
[1730553083112,11.22683762,165.53,165.51,23.902374]
[1730553083483,11.22683762,165.55,165.51,23.902374]